fUSD/lending_fUSD_20240201
["ID","MTS","AMOUNT","RATE_DAILY","PERIOD"]
[313148296,1706814631622,-125077.45279014,0.00022511,2]
[313148297,1706814631637,-662.815,0.00022511,2]
[313148298,1706814631648,-756.82565859,0.00022511,2]
[313148299,1706814631689,-430.68859497,0.00022511,2]
[313148300,1706814631700,-968.45269273,0.00022511,2]
[313148301,1706814631711,-3485.27784583,0.00022511,2]
[313148302,1706814631722,-319318.1819787,0.00022511,2]
[313148303,1706814631734,-306.91032423,0.00022511,2]
[313148305,1706814631754,-5795.42564703,0.00022511,2]
[313148307,1706814631768,-2146.34346985,0.00022511,2]
[313148312,1706814637464,-4283.83456249,0.00022511,2]
[313148313,1706814637475,-344.4364066,0.00022511,2]
[313148314,1706814637487,-475.255011,0.00022511,2]
[313148315,1706814637574,-3077.77406271,0.00022511,2]
[313148316,1706814637586,-2101.5,0.00022511,2]
[313148317,1706814637598,-154608.17739414,0.00022511,2]
[313148318,1706814637609,-1299.01489791,0.00022511,2]
[313148319,1706814637630,-578.267575,0.00022511,2]
[313148320,1706814637642,-5067.72629651,0.00022511,2]
[313148321,1706814637694,-26709.5243531,0.00022511,2]
[313148322,1706814637705,-156.30183788,0.00022512,2]
[313148323,1706814637714,-231.42613239,0.00022512,2]
[313148324,1706814637723,-697.90157938,0.00022512,2]
[313148325,1706814637735,-400.0,0.00022512,2]
[313148326,1706814637744,-362.44210625,0.00022512,2]
[313148327,1706814637753,-860.83950855,0.00022512,2]
[313148328,1706814637763,-10512.98839623,0.00022512,2]
[313148329,1706814637772,-23932.55608075,0.00022512,2]
[313148330,1706814637781,-155.0,0.00022512,2]
[313148331,1706814637792,-392.32417861,0.00022512,2]
[313148332,1706814637804,-39194.97845797,0.00022512,2]
[313148333,1706814637824,-280.96111801,0.00022512,2]
[313148334,1706814637833,-155.0,0.00022512,2]
[313148335,1706814637843,-197.15492761,0.00022512,2]
[313148336,1706814637854,-199.27008978,0.00022512,2]
[313148338,1706814637863,-155.0,0.00022512,2]
[313148340,1706814637873,-344.74329012,0.00022512,2]
[313148341,1706814637886,-343.06270534,0.00022512,2]
[313148342,1706814637898,-155.0,0.00022512,2]
[313148343,1706814637910,-303.66693744,0.00022512,2]
[313148345,1706814637919,-6441.03694263,0.00022512,2]
[313148347,1706814637929,-265.60479765,0.00022512,2]
[313148349,1706814637938,-10473.64165747,0.00022512,2]
[313148351,1706814637949,-2667.07296721,0.00022512,2]
[313148353,1706814637957,-235.61013094,0.00022512,2]
[313148355,1706814637967,-164.03550652,0.00022512,2]
[313148357,1706814637976,-474.20164571,0.00022512,2]
[313148359,1706814637986,-240.30506348,0.00022512,2]
[313148361,1706814637996,-314.91414561,0.00022512,2]
[313148363,1706814638005,-2142.39385977,0.00022512,2]
[313148366,1706814638014,-581.70009375,0.00022512,2]
[313148369,1706814638025,-543.89474712,0.00022512,2]
[313148371,1706814638035,-338.32247396,0.00022512,2]
[313148373,1706814638044,-302.84837453,0.00022513,2]
[313148375,1706814638054,-488.19421159,0.00022513,2]
[313148377,1706814638063,-310.77911582,0.00022513,2]
[313148379,1706814638073,-390.90216645,0.00022513,2]
[313148381,1706814638083,-220.10875743,0.00022513,2]
[313148383,1706814638092,-292.70291374,0.00022513,2]
[313148385,1706814638101,-327.82736253,0.00022513,2]
[313148387,1706814638110,-281.91214692,0.00022513,2]
[313148390,1706814638121,-163.42827114,0.00022532,2]
[313148392,1706814638131,-1288.11736518,0.00022532,2]
[313148394,1706814638140,-980.92,0.00022532,2]
[313148396,1706814638153,-352.75,0.00022548,2]
[313148398,1706814638163,-499.99,0.00022551,2]
[313148400,1706814638173,-5725.8,0.00022562,2]
[313148402,1706814638183,-4914.2,0.00022562,2]
[313148404,1706814638193,-1118.04,0.00022562,2]
[313148406,1706814638202,-5221.64,0.00022562,2]
[313148408,1706814638212,-2037.39,0.00022562,2]
[313148411,1706814638222,-2812.13,0.00022562,2]
[313148438,1706814638466,-163.42827114,0.00022593,2]
[313148440,1706814638479,-164.0,0.00022604,2]
[313148442,1706814638489,-442.6744307,0.00022621,2]
[313148444,1706814638498,-150.44,0.0002264,2]
[313148446,1706814638507,-163.42827114,0.00022655,2]
[313148448,1706814638517,-442.6744307,0.00022691,2]
[313148450,1706814638527,-163.42827114,0.00022716,2]
[313148452,1706814638536,-150.0,0.00022732,2]
[313148454,1706814638545,-150.0,0.00022737,2]
[313148456,1706814638554,-442.6744307,0.00022761,2]
[313148458,1706814638563,-22635.3430364,0.00022768,2]
[313148460,1706814638572,-150.0,0.00022773,2]
[313148462,1706814638581,-163.42827114,0.00022777,2]
[313148464,1706814638590,-150.0,0.00022779,2]
[313148466,1706814638599,-150.44,0.00022783,2]
[313148468,1706814638607,-150.0,0.00022794,2]
[313148470,1706814638616,-155.0,0.000228,2]
[313148472,1706814638626,-351.046018,0.000228,2]
[313148474,1706814638635,-187.55259939,0.000228,2]
[313148477,1706814638644,-150.0,0.00022808,2]
[313148478,1706814638653,-500.0,0.00022816,2]
[313148480,1706814638663,-200.0,0.00022816,2]
[313148482,1706814638672,-150.0,0.00022817,2]
[313148485,1706814638683,-150.0,0.00022821,2]
[313148486,1706814638692,-351.04601797,0.00022825,2]
[313148488,1706814638701,-442.6744307,0.0002283,2]
[313148490,1706814638710,-163.42827114,0.00022839,2]
[313148493,1706814638719,-351.04601797,0.0002285,2]
[313148494,1706814638728,-150.0,0.00022857,2]
[313148496,1706814638737,-351.04601797,0.00022875,2]
[313148499,1706814638747,-150.0,0.00022881,2]
[313148501,1706814638760,-150.0,0.00022896,2]
[313148503,1706814638771,-549.0,0.00022899,2]
[313148505,1706814638781,-276.6938,0.000229,2]
[313148507,1706814638789,-2796.2324,0.000229,2]
[313148509,1706814638799,-237.8275,0.000229,2]
[313148511,1706814638807,-500.0,0.000229,2]
[313148513,1706814638816,-389970.94014743,0.000229,3]
[313148515,1706814638825,-195017.14582948,0.000229,2]
[313148517,1706814638834,-5000.0,0.000229,2]
[313148519,1706814638843,-351.04601797,0.000229,2]
[313148521,1706814638852,-187.55259938,0.000229,2]
[313148523,1706814638862,-153.95880582,0.000229,2]
[313148525,1706814638871,-163.42827114,0.000229,2]
[313148527,1706814638880,-442.6744307,0.000229,2]
[313148529,1706814638889,-12557.68322824,0.000229,2]
[313148531,1706814638899,-1501.26239287,0.000229,6]
[313148534,1706814638908,-3215.38229018,0.000229,2]
[313148535,1706814638917,-4635.23930055,0.000229,2]
[313148538,1706814638927,-377.5961727,0.000229,2]
[313148540,1706814638936,-150.0,0.0002292,2]
[313148542,1706814638945,-150.44,0.00022926,2]
[313148544,1706814638955,-206.0,0.00022934,2]
[313148546,1706814638964,-150.0,0.00022943,2]
[313148548,1706814638973,-150.0,0.00022957,2]
[313148550,1706814638982,-150.0,0.00022959,2]
[313148551,1706814638993,-14842.0,0.00022986,2]
[313148553,1706814639002,-193.88407955,0.0002299,2]
[313148555,1706814639012,-193.88407955,0.0002299,2]
[313148557,1706814639021,-301.77033695,0.00022998,2]
[313148559,1706814639030,-3059.27150435,0.00022998,2]
[313148561,1706814639040,-78620.63733662,0.00022998,2]
[313148563,1706814639049,-387.97709514,0.00022999,2]
[313148566,1706814639059,-237.76133787,0.00022999,2]
[313148568,1706814639068,-502.63907881,0.00022999,2]
[313148570,1706814639077,-150.01,0.00022999,2]
[313148572,1706814639086,-3306.75797983,0.00022999,2]
[313148574,1706814639095,-357.11876471,0.00022999,10]
[313148576,1706814639105,-589.84186442,0.00022999,2]
[313148578,1706814639115,-500.0,0.00022999,2]
[313148580,1706814639126,-419.3896757,0.00022999,2]
[313148581,1706814639135,-500.0,0.00022999,2]
[313148582,1706814639144,-500.0,0.00022999,2]
[313148583,1706814639154,-500.0,0.00022999,2]
[313148584,1706814639163,-500.0,0.00022999,2]
[313148585,1706814639172,-500.0,0.00022999,2]
[313148586,1706814639182,-500.0,0.00022999,2]
[313148587,1706814639191,-500.0,0.00022999,2]
[313148588,1706814639200,-500.0,0.00022999,2]
[313148589,1706814639209,-500.0,0.00022999,2]
[313148590,1706814639218,-569.22192043,0.00022999,2]
[313148591,1706814639227,-500.0,0.00022999,2]
[313148593,1706814639237,-500.0,0.00022999,2]
[313148595,1706814639246,-500.0,0.00022999,2]
[313148597,1706814639255,-234.84986559,0.00022999,2]
[313148599,1706814639265,-419.78359935,0.00022999,2]
[313148601,1706814639274,-500.0,0.00022999,2]
[313148603,1706814639284,-188.41643584,0.00022999,2]
[313148605,1706814639294,-500.0,0.00022999,2]
[313148607,1706814639305,-500.0,0.00022999,2]
[313148609,1706814639315,-500.0,0.00022999,2]
[313148611,1706814639324,-500.0,0.00022999,2]
[313148613,1706814639333,-500.0,0.00022999,2]
[313148615,1706814639344,-416.00016024,0.00022999,2]
[313148617,1706814639353,-499.99999999,0.00022999,2]
[313148619,1706814639362,-500.0,0.00022999,2]
[313148621,1706814639371,-200.0,0.00022999,2]
[313148623,1706814639381,-419.51443998,0.00022999,2]
[313148625,1706814639391,-500.0,0.00022999,2]
[313148627,1706814639400,-500.0,0.00022999,2]
[313148629,1706814639409,-625.854332,0.00022999,2]
[313148631,1706814639418,-350.0,0.00022999,2]
[313148633,1706814639429,-595.0,0.00022999,2]
[313148635,1706814639438,-437.7562996,0.00022999,2]
[313148637,1706814639448,-500.0,0.00022999,2]
[313148639,1706814639458,-500.0,0.00022999,2]
[313148641,1706814639467,-500.0,0.00022999,2]
[313148643,1706814639476,-178.79082596,0.00022999,2]
[313148645,1706814639485,-423.35993203,0.00022999,2]
[313148647,1706814639494,-481.32688988,0.00022999,2]
[313148649,1706814639503,-172.03317914,0.00023,3]
[313148651,1706814639512,-3736884.28404889,0.00023,2]
[313148653,1706814639521,-226.44597869,0.00023,2]
[313148655,1706814639531,-807.89754945,0.00023,2]
[313148657,1706814639540,-284.82184002,0.00023,2]
[313148659,1706814639549,-207.70154514,0.00023,2]
[313148661,1706814639558,-235.10419243,0.00023,2]
[313148663,1706814639567,-160.0,0.00023,2]
[313148665,1706814639577,-225.222887,0.00023,2]
[313148667,1706814639586,-218.68348549,0.00023,2]
[313148669,1706814639595,-12947903.12350884,0.00023,2]
[313148671,1706814639609,-543.68032293,0.00023,2]
[313148675,1706814639630,-4669.94190803,0.00023,2]
[313148677,1706814639641,-4917.8362165,0.00023,2]
[313148680,1706814639656,-652.69310717,0.00023,2]
[313148721,1706814640144,-30667.09225889,0.00023,2]
[313148724,1706814640156,-1112.03300627,0.00023,2]
[313148726,1706814640167,-268.13119273,0.00023,2]
[313148728,1706814640903,-3306.75797983,0.00022999,2]
[313148729,1706814640912,-78343.8098727,0.00023,2]
[313148730,1706814640923,-1242.08461943,0.00023,2]
[313148731,1706814640958,-1057.19,0.00023,2]
[313148732,1706814641017,-526.32779516,0.00023,2]
[313148750,1706814642499,-6977.6865825,0.00023,2]
[313148753,1706814642510,-504.99278575,0.00023,2]
[313148765,1706814642603,-5042.33487039,0.00023,2]
[313148766,1706814642615,-481.69407766,0.00023,2]
[313148767,1706814642766,-367.35689801,0.00023,2]
[313148782,1706814645562,-813.26,0.00023,2]
[313148783,1706814645619,-1934.4175686,0.00023,2]
[313148784,1706814645630,-752.20274444,0.00023,2]
[313148785,1706814645641,-409.248,0.00023,2]
[313148786,1706814645652,-984654.46382479,0.00023,2]
[313148787,1706814645735,-5013.99694922,0.00023,2]
[313148788,1706814645791,-3975.58146488,0.00023,2]
[313148789,1706814645849,-1000.0,0.00023,2]
[313149031,1706814694058,2796.2324,0.00022411,2]
[313149032,1706814783243,276.6938,0.00022411,2]
[313149033,1706814809411,3196.50427923,0.00021982,2]
[313149034,1706814841700,150.44,0.00021932,2]
[313149035,1706814860083,244.3135935,0.00021982,2]
[313149036,1706814878059,281.62914468,0.00021982,2]
[313149037,1706814932083,246.25876241,0.00022468,2]
[313149038,1706814958530,165.82,0.00022498,2]
[313149039,1706814997840,250.0,0.00021769,2]
[313149040,1706815009771,166.59,0.00022369,2]
[313149041,1706815030319,317.97,0.00019851,2]
[313149042,1706815030614,317.97,0.00022115,2]
[313149043,1706815031434,493.37,0.00021769,2]
[313149044,1706815067191,164.17250828,0.00022466,2]
[313149045,1706815072193,164.17250826,0.00022467,2]
[313149046,1706815077383,164.17250826,0.00022468,2]
[313149047,1706815163592,500.0,0.00022434,2]
[313149048,1706815263607,157.24861061,0.00022444,2]
[313149049,1706815264858,185.87,0.00022364,2]
[313149050,1706815305479,200.0,0.00022437,2]
[313149051,1706815329895,155.0,0.00020608,2]
[313149053,1706815347881,156.14418568,0.00020608,2]
[313149054,1706815434079,285.81,0.00022389,2]
[313149055,1706815436680,-155.0,0.00022515,2]
[313149056,1706815436704,-2000.0,0.00022516,2]
[313149057,1706815494454,299.03,0.00020404,2]
[313149058,1706815528534,184.05,0.00018038,2]
[313149059,1706815630413,915.88,0.00022415,2]
[313149060,1706815693301,159.92,0.00022438,2]
[313149061,1706815739026,211.17,0.00022243,2]
[313149062,1706815800888,4274.95,0.00022125,2]
[313149063,1706815800914,19625.05,0.00022125,2]
[313149064,1706815809008,159.42933623,0.00022103,2]
[313149085,1706815831689,-605.3,0.00022548,2]
[313149087,1706815831698,-206.0,0.00022582,2]
[313149089,1706815831710,-299.03,0.00022668,2]
[313149090,1706815831720,-988.0,0.0002277,2]
[313149092,1706815831729,-200.0,0.00022816,2]
[313149094,1706815831738,-800.0,0.00022816,2]
[313149096,1706815831747,-200.0,0.00022816,2]
[313149098,1706815831757,-155.70493333,0.00022897,2]
[313149099,1706815831766,-150.0,0.00022897,2]
[313149101,1706815831775,-150.0,0.00022897,2]
[313149103,1706815831784,-734.9295536,0.00022898,2]
[313149105,1706815831794,-242.98263032,0.00022898,2]
[313149107,1706815831804,-499.99,0.00022898,2]
[313149108,1706815831813,-451.11319317,0.00022898,3]
[313149110,1706815831822,-49825.11681209,0.00022898,2]
[313149112,1706815831834,-1084.12977769,0.00022898,2]
[313149114,1706815831845,-824.0,0.00022898,2]
[313149116,1706815831860,-30224.85731022,0.00022898,2]
[313149118,1706815831870,-341.87083974,0.00022899,2]
[313149120,1706815831879,-22506.80192793,0.000229,2]
[313149122,1706815831891,-318.01504645,0.000229,2]
[313149124,1706815831902,-544.127513,0.000229,2]
[313149126,1706815831913,-543.83,0.000229,2]
[313149180,1706815837942,-1088.16047109,0.000229,2]
[313149184,1706815840837,-9664.43684153,0.000229,2]
[313149185,1706815840847,-1565.84,0.000229,2]
[313149186,1706815840856,-2211.585,0.000229,2]
[313149187,1706815840866,-722.48,0.000229,2]
[313149188,1706815840876,-687.02,0.000229,2]
[313149189,1706815840886,-5000.0,0.000229,2]
[313149190,1706815840897,-153.76394446,0.000229,2]
[313149191,1706815840906,-4557.09787229,0.000229,2]
[313149192,1706815840916,-1221.23765968,0.000229,2]
[313149193,1706815840925,-578.19241258,0.000229,2]
[313149194,1706815840935,-221.33721535,0.000229,2]
[313149195,1706815840944,-170.15365364,0.000229,2]
[313149196,1706815840954,-166.32696814,0.000229,2]
[313149197,1706815840963,-736.96,0.00022993,2]
[313149198,1706815840972,-419.13902718,0.00022998,2]
[313149199,1706815840982,-27012.39448358,0.00022998,2]
[313149200,1706815840992,-931.95145673,0.00022998,2]
[313149201,1706815841002,-1419.37423398,0.00022998,2]
[313149202,1706815841011,-1234.22666792,0.00022998,2]
[313149203,1706815841021,-196.89353591,0.00022998,2]
[313149204,1706815841030,-292.70291374,0.00022998,2]
[313149205,1706815841040,-162.54625844,0.00022998,2]
[313149206,1706815841050,-2094.19739999,0.00022998,2]
[313149207,1706815841059,-383.55337312,0.00022998,2]
[313149208,1706815841069,-1122.67821581,0.00022998,2]
[313149209,1706815841078,-207.15952483,0.00022998,2]
[313149210,1706815841087,-155.87472914,0.00022998,2]
[313149211,1706815841096,-304.24936636,0.00022998,2]
[313149212,1706815841106,-1133.44014387,0.00022998,2]
[313149213,1706815841115,-337.02583242,0.00022998,2]
[313149214,1706815841124,-489.16849662,0.00022998,2]
[313149215,1706815841134,-473.99974479,0.00022999,2]
[313149216,1706815841145,-150.01,0.00022999,2]
[313149217,1706815841156,-3306.75797983,0.00022999,2]
[313149218,1706815841166,-14105.05927928,0.00022999,2]
[313149219,1706815841175,-180.0,0.00022999,2]
[313149220,1706815841185,-30432.88655579,0.00023,3]
[313149221,1706815841197,-728.01,0.00023,3]
[313149222,1706815841209,-553.27,0.00023,3]
[313149223,1706815841222,-293.7174423,0.00023,3]
[313149224,1706815841233,-264.77134148,0.00023,3]
[313149225,1706815841245,-644.08472678,0.00023,3]
[313149226,1706815841257,-865.43343827,0.00023,3]
[313149227,1706815841269,-311.0,0.00023,3]
[313149228,1706815841280,-2577.59114036,0.00023,3]
[313149229,1706815841291,-355.05855364,0.00023,3]
[313149230,1706815841303,-293.21426,0.00023,3]
[313149232,1706815841315,-1025.0357921,0.00023,3]
[313149235,1706815841326,-778.47144595,0.00023,3]
[313149237,1706815841342,-2355.0,0.00023,3]
[313149238,1706815841353,-383.70595248,0.00023,3]
[313149239,1706815841366,-1454.51944602,0.00023,3]
[313149240,1706815841377,-8856.80829129,0.00023,3]
[313149241,1706815841388,-6026.09268479,0.00023,3]
[313149242,1706815841400,-41422.72480612,0.00023,3]
[313149243,1706815841416,-933.35126929,0.00023,3]
[313149244,1706815841428,-261.355,0.00023,3]
[313149245,1706815841439,-1572.2859,0.00023,3]
[313149246,1706815841451,-1170.11568538,0.00023,3]
[313149247,1706815841464,-582.17636691,0.00023,3]
[313149248,1706815841483,-473.04997849,0.00023,3]
[313149249,1706815841496,-587.4769397,0.00023,3]
[313149250,1706815841508,-368.04046622,0.00023,3]
[313149251,1706815841520,-300.0,0.00023,3]
[313149252,1706815841532,-778.79529046,0.00023,3]
[313149253,1706815841548,-1535.56626615,0.00023,3]
[313149254,1706815841559,-1120.0285415,0.00023,3]
[313149255,1706815841575,-1105.23471717,0.00023,3]
[313149256,1706815841587,-546.04999995,0.00023,3]
[313149257,1706815841598,-4704.19,0.00023,3]
[313149301,1706815843197,-3012.50657423,0.00023,3]
[313149309,1706815843256,-1452.83921147,0.00023,3]
[313149310,1706815843318,-360.0000149,0.00023,3]
[313149311,1706815843330,-275.0000004,0.00023,3]
[313149312,1706815843341,-429.79788,0.00023,3]
[313149313,1706815843354,-250.89843054,0.00023,3]
[313149314,1706815843366,-1077.19,0.00023,3]
[313149315,1706815843456,-274.27926531,0.00023,3]
[313149316,1706815843469,-398592.63537474,0.00023,3]
[313149317,1706815843478,-254055.69520997,0.00023,2]
[313149336,1706815845700,-150.01,0.00022999,2]
[313149337,1706815845710,-3306.75797983,0.00022999,2]
[313149338,1706815845721,-1751.53784018,0.00023,2]
[313149339,1706815845732,-2904.57316507,0.00023,2]
[313149340,1706815845747,-2547.5,0.00023,2]
[313149341,1706815845760,-735.9234,0.00023,2]
[313149342,1706815845772,-1660.0,0.00023,2]
[313149343,1706815845783,-503.5,0.00023,2]
[313149344,1706815845799,-842.0,0.00023,2]
[313149345,1706815845811,-858.9596004,0.00023,2]
[313149346,1706815845822,-11311.69009236,0.00023,2]
[313149347,1706815845880,-366.40464586,0.00023,2]
[313149348,1706815845891,-10289.99999999,0.00023,2]
[313149349,1706815845904,-51422.37386909,0.00023,2]
[313149350,1706815845915,-538967.75703047,0.00023,2]
[313149351,1706815845927,-10023.77322503,0.00023,2]
[313149352,1706815845942,-17749.21366054,0.00023,2]
[313149353,1706815845953,-1136.31970679,0.00023,2]
[313149354,1706815845965,-2378.80520568,0.00023,2]
[313149355,1706815846001,-5617.7333,0.00023,2]
[313149356,1706815846012,-5570.45453968,0.00023,2]
[313149357,1706815846023,-4090.62475993,0.00023,2]
[313149358,1706815846035,-8843.92475302,0.00023,2]
[313149359,1706815846046,-950.0,0.00023,2]
[313149360,1706815854466,167.89,0.00022125,2]
[313149361,1706815867533,3197.82550138,0.00022078,2]
[313149362,1706815887186,294.4833,0.00022443,2]
[313149363,1706815913446,2490.09512574,0.00022306,2]
[313149364,1706815915867,856.10256511,0.00022078,2]
[313149365,1706815920827,155.47766133,0.00022078,2]
[313149366,1706815940632,297.49,0.00022375,2]
[313149367,1706815943038,160.68302552,0.00022078,2]
[313149368,1706815945759,16720.30631215,0.00022078,2]
[313149369,1706815964878,209.51675194,0.00022078,2]
[313149370,1706816017363,515.76,0.00022456,2]
[313149371,1706816019322,1320.21820552,0.00021485,7]
[313149372,1706816032671,279.85,0.00022456,2]
[313149373,1706816104379,763.23,0.00022383,2]
[313149374,1706816132205,212.26,0.00022166,2]
[313149375,1706816221528,1223.80117971,0.00022497,2]
[313149377,1706816285713,23900.0,0.00022283,2]
[313149378,1706816346804,250.0,0.00022287,2]
[313149379,1706816389169,155.1,0.00022462,2]
[313149380,1706816398437,854.97856747,0.00022287,4]
[313149381,1706816412438,250.07664637,0.00022287,4]
[313149382,1706816420926,375.3,0.00020324,2]
[313149383,1706816440629,169.2,0.00022283,2]
[313149384,1706816442144,2369.7,0.00022283,2]
[313149385,1706816462264,2000.0,0.00021941,2]
[313149386,1706816508989,264.33,0.00021933,2]
[313149387,1706816531722,250.0,0.00021923,2]
[313149388,1706816566939,835.08787544,0.000225,2]
[313149389,1706816576324,159.92,0.00022283,2]
[313149390,1706816613434,216.22962887,0.00022501,2]
[313149391,1706816617546,1084.33,0.00021969,2]
[313149392,1706816676960,1000.0,0.00021969,2]
[313149393,1706816727718,18421.85,0.00021945,2]
[313149394,1706816775039,250.0,0.00021945,2]
[313149396,1706816794256,206.0,0.0002246,2]
[313149397,1706816846179,15000.0,0.0003125,120]
[313149398,1706816871401,7548.57943304,0.0002246,2]
[313149399,1706816901155,225.92,0.00022106,2]
[313149400,1706816901352,225.92,0.00022167,2]
[313149401,1706816901636,225.92,0.00022228,2]
[313149402,1706816901866,225.92,0.00022288,2]
[313149403,1706816902106,225.92,0.00022349,2]
[313149404,1706816902336,225.92,0.0002241,2]
[313149405,1706816902739,225.92,0.0002247,2]
[313149406,1706816913031,432.77,0.00020051,2]
[313149407,1706816913388,432.77,0.00022315,2]
[313149408,1706816923725,2000.0,0.00021898,2]
[313149409,1706816929598,222.35,0.00021897,2]
[313149410,1706817017887,5239.420896,0.00022417,2]
[313149433,1706817031922,-249.52928063,0.0002253,2]
[313149435,1706817031931,-225.92,0.00022531,2]
[313149437,1706817031940,-225.92,0.00022592,2]
[313149439,1706817031949,-150.0,0.00022603,2]
[313149441,1706817031958,-367.07550151,0.00022616,2]
[313149443,1706817031967,-225.94230657,0.00022616,2]
[313149445,1706817031976,-293.85487138,0.00022616,2]
[313149447,1706817031986,-1000.0009742,0.00022616,2]
[313149449,1706817031995,-362.14263408,0.00022616,2]
[313149451,1706817032004,-221.04924005,0.00022616,2]
[313149453,1706817032013,-391.49470911,0.00022616,2]
[313149456,1706817032025,-133.6843966,0.00022616,2]
[313149458,1706817032034,-725.07543316,0.00022616,2]
[313149641,1706817033974,-1320.21820552,0.00022616,2]
[313149643,1706817033985,-907.94,0.00022616,2]
[313149649,1706817034045,-2220.8144468,0.00022616,2]
[313149650,1706817034056,-2377.035,0.00022616,2]
[313149651,1706817034110,-2978.26822428,0.00022616,2]
[313149652,1706817034119,-203.7475932,0.00022616,2]
[313149656,1706817038700,-5025.03895712,0.00022616,2]
[313149657,1706817038710,-155.0,0.00022616,2]
[313149658,1706817038719,-505.45040056,0.00022616,2]
[313149659,1706817038729,-300.0,0.00022617,2]
[313149660,1706817038738,-150.0,0.00022617,2]
[313149661,1706817038747,-1843.4544213,0.00022617,2]
[313149662,1706817038758,-912.4500044,0.00022617,2]
[313149663,1706817038770,-10261.9446384,0.00022617,2]
[313149664,1706817038786,-28.78670684,0.00022617,2]
[313149665,1706817038795,-22956.40856317,0.00022618,2]
[313149666,1706817038807,-1688.10281342,0.00022618,2]
[313149667,1706817038820,-270.5502,0.00022618,2]
[313149675,1706817040476,-319.75120261,0.00022618,2]
[313149676,1706817040489,-290.39991326,0.00022618,2]
[313149677,1706817040545,-2179.37507382,0.00022618,2]
[313149678,1706817040558,-489.47653646,0.00022618,2]
[313149679,1706817040637,-753.39095171,0.00022618,2]
[313149680,1706817040650,-14158.23252745,0.00022618,2]
[313149681,1706817040662,-225.92,0.00022652,2]
[313149682,1706817040671,-160.21477734,0.00022666,2]
[313149683,1706817040680,-295.46,0.00022668,2]
[313149684,1706817040690,-433.78264,0.000227,2]
[313149685,1706817040699,-225.92,0.00022713,2]
[313149686,1706817040709,-247.50960015,0.00022766,2]
[313149687,1706817040718,-155.0,0.00022766,2]
[313149688,1706817040731,-281.28534164,0.00022766,2]
[313149689,1706817040741,-225.92,0.00022773,2]
[313149690,1706817040750,-500.0,0.00022816,2]
[313149691,1706817040759,-200.0,0.00022816,2]
[313149692,1706817040769,-800.0,0.00022816,2]
[313149693,1706817040778,-200.0,0.00022816,2]
[313149694,1706817040788,-181.58,0.00022831,2]
[313149695,1706817040797,-248.43764306,0.00022834,3]
[313149696,1706817040806,-225.92,0.00022834,2]
[313149697,1706817040815,-877.9064386,0.00022865,2]
[313149698,1706817040827,-2595.08522887,0.00022865,2]
[313149699,1706817040839,-631.66616526,0.00022865,2]
[313149700,1706817041374,-155.0,0.00022616,2]
[313149701,1706817041384,-104.01786065,0.00022865,2]
[313149702,1706817041393,-225.92,0.00022895,2]
[313149703,1706817041405,-424.452,0.00022897,2]
[313149704,1706817041414,-8177.3658,0.000229,2]
[313149705,1706817041423,-900.0,0.000229,2]
[313149706,1706817041432,-1000.0,0.000229,2]
[313149707,1706817041441,-170.0439005,0.000229,2]
[313149708,1706817041450,-225.92,0.00022955,2]
[313149709,1706817041460,-162.74596975,0.00022973,2]
[313149711,1706817041469,-159.79188253,0.0002299,2]
[313149713,1706817041479,-292.70291374,0.00022995,2]
[313149714,1706817041488,-1047.55348492,0.00022995,2]
[313149715,1706817041498,-301.44763826,0.00022995,2]
[313149716,1706817041508,-6630.17001205,0.00022995,2]
[313149717,1706817041518,-164.16594824,0.00022995,2]